bitfinex/quotes_ETHUSD_20250625
["timestamp","ask_amount","ask_price","bid_price","bid_amount"]
[1750880852953,1.792,2433.6,2433.1,0.7876]
[1750880853251,1.792,2433.6,2433.3,4.10956279]
[1750880853673,1.792,2433.6,2433.1,4.89751766]
[1750880853674,1.792,2433.6,2433.5,4.10930758]
[1750880853955,4.89674648,2434.2,2433.6,0.7876]
[1750880854158,4.10838534,2434.1,2433.6,0.7876]
[1750880854373,4.10838534,2434.1,2433.6,4.89672182]
[1750880854674,4.10810137,2434.3,2433.6,4.89672182]
[1750880854675,4.10803553,2434.3,2433.7,4.10896988]
[1750880854838,1.0089504,2434.4,2433.9,4.1085232]
[1750880855038,1.0089504,2434.4,2434.1,4.1082594]
[1750880855250,0.2203504,2434.4,2434.2,4.10812313]
[1750880855440,0.2203504,2434.4,2434.1,4.10820902]
[1750880855761,0.2203504,2434.4,2434.0,4.89598165]
[1750880856139,0.2203504,2434.4,2434.0,4.89593051]
[1750880857134,0.2203504,2434.4,2434.0,1.68807005]
[1750880857336,0.2203504,2434.4,2434.2,4.1079932]
[1750880857553,0.2203504,2434.4,2434.1,4.10826952]
[1750880857756,0.2203504,2434.4,2434.0,4.89601523]
[1750880858264,0.2203504,2434.4,2434.3,4.10795711]
[1750880858647,0.2203504,2434.4,2434.2,4.10796431]
[1750880859053,0.2203504,2434.4,2434.3,4.10795711]
[1750880859251,0.2203504,2434.4,2434.3,4.92958111]
[1750880860128,0.2203504,2434.4,2434.3,0.821624]
[1750880860939,4.32826182,2434.4,2434.0,0.7876]
[1750880861962,4.32826182,2434.4,2434.0,4.89602895]
[1750880861963,0.2203504,2434.4,2434.0,4.89602895]
[1750880862173,4.32824587,2434.4,2434.0,0.7876]
[1750880862333,4.10813049,2434.2,2434.1,0.2048]
[1750880862532,4.10813049,2434.2,2433.7,1.24485699]
[1750880862533,0.8238,2434.3,2433.7,0.7552]
[1750880862759,4.31293907,2434.2,2433.8,10.2048]
[1750880863145,4.31293907,2434.2,2433.8,0.2048]
[1750880863360,4.10863223,2433.9,2433.8,0.2048]
[1750880863667,4.10872312,2433.9,2433.5,0.2048]
[1750880864165,4.90780253,2433.8,2433.5,0.2048]
[1750880864353,0.799,2433.8,2433.5,0.2048]
[1750880864663,0.799,2433.8,2433.1,0.823]
[1750880864664,0.2048,2433.7,2433.3,4.31444521]
[1750880865839,0.2048,2433.7,2433.4,4.10942123]
[1750880866346,4.10917714,2433.6,2433.3,0.2048]
[1750880866548,4.31387933,2433.7,2433.3,0.2048]
[1750880867869,0.2048,2433.7,2433.3,4.3144294]
[1750880868173,4.31377745,2433.7,2433.3,0.2048]
[1750880868773,0.2048,2433.7,2433.3,4.31440971]
[1750880868969,0.2048,2433.7,2433.3,0.2048]
[1750880869144,0.2048,2433.7,2433.3,4.31439663]
[1750880869346,0.2048,2433.7,2433.4,4.10931155]
[1750880869544,0.2048,2433.9,2433.4,1.04717537]
[1750880869743,0.2048,2434.0,2433.8,4.10877368]
[1750880870661,0.2048,2434.0,2433.7,4.10889678]
[1750880870861,4.31330833,2434.0,2433.6,0.2048]
[1750880871773,0.2048,2434.0,2433.6,0.2048]
[1750880871967,0.2048,2434.0,2433.7,4.10888044]
[1750880872273,0.2048,2434.0,2433.8,4.10871645]
[1750880872473,0.2048,2434.0,2433.9,4.10863223]
[1750880872645,5.12166785,2434.3,2433.8,5.15573746]
[1750880873479,1.0136,2434.3,2433.9,4.10862057]
[1750880873647,0.2048,2434.3,2434.1,4.10823594]
[1750880873849,0.2203504,2434.4,2434.1,4.10822142]
[1750880874042,0.2203504,2434.4,2434.1,4.31302142]
[1750880874448,0.2203504,2434.4,2434.2,4.1080467]
[1750880874649,0.2203504,2434.4,2434.1,4.31301528]
[1750880874981,0.2203504,2434.4,2434.1,0.2048]
[1750880875282,4.32815359,2434.4,2434.1,0.2048]
[1750880875778,0.2203504,2434.4,2434.1,0.2048]
[1750880875979,4.10812587,2434.2,2434.1,0.2048]
[1750880876183,4.10812587,2434.2,2433.7,4.31367019]
[1750880876184,4.31300018,2434.2,2433.7,4.31367019]
[1750880877078,4.10833001,2434.1,2433.7,0.2048]
[1750880877283,4.10837992,2434.1,2433.7,0.2048]
[1750880877465,0.2048,2434.2,2433.7,0.2048]
[1750880877669,4.31300908,2434.2,2433.7,4.31375967]
[1750880878070,4.10849194,2434.0,2433.7,0.2048]
[1750880878577,0.2048,2434.2,2433.7,0.2048]
[1750880878578,4.31302121,2434.2,2433.7,0.2048]
[1750880878786,0.2048,2433.9,2433.6,10.0]
[1750880879086,0.2048,2433.9,2433.5,0.2048]
[1750880879286,0.2048,2433.9,2433.4,0.7768]
[1750880879287,0.7581,2433.8,2433.4,4.10944673]
[1750880879582,0.2048,2433.7,2433.4,4.10944673]
[1750880879880,4.31335898,2434.0,2433.6,4.31393375]
[1750880880043,4.31335898,2434.0,2433.6,0.2048]
[1750880880246,0.2048,2434.0,2433.6,4.313918]
[1750880880679,4.31328565,2434.0,2433.6,0.2048]
[1750880881749,0.2048,2434.0,2433.6,4.3139128]
[1750880882245,0.2048,2434.0,2433.6,4.79465563]
[1750880882447,4.31326373,2434.0,2433.6,0.68554283]
[1750880882678,4.10864179,2433.9,2433.6,0.2048]
[1750880883075,4.31334274,2434.0,2433.6,0.2048]
[1750880883481,4.31328711,2434.0,2433.6,0.2048]
[1750880884478,4.31328711,2434.0,2433.6,4.31393377]
[1750880884479,0.2048,2434.0,2433.6,4.31393377]
[1750880884684,0.2048,2434.0,2433.7,4.10887377]
[1750880885047,0.8142,2434.3,2433.7,0.91996075]
[1750880885251,1.019,2434.3,2433.9,4.31333143]
[1750880885956,4.10832626,2434.1,2433.9,0.2048]
[1750880886160,4.10821273,2434.2,2433.9,0.2048]
[1750880886405,0.2048,2434.3,2433.9,4.31338457]
[1750880886681,0.2048,2434.3,2434.1,4.10819663]
[1750880886862,0.2203504,2434.4,2434.1,4.10819663]
[1750880887454,4.3282241,2434.4,2434.0,0.2048]
[1750880887674,5.09017369,2434.3,2434.0,0.2048]
[1750880887874,4.10797235,2434.3,2434.0,0.2048]
[1750880888080,4.10829464,2434.1,2434.0,0.2048]
[1750880888284,4.1085867,2434.0,2433.7,0.2048]
[1750880888477,4.10846343,2434.0,2433.7,0.2048]
[1750880888683,0.2048,2434.1,2433.7,0.2048]
[1750880888866,4.10888636,2433.8,2433.3,4.10953638]
[1750880889082,4.31368636,2433.8,2433.3,5.21254459]
[1750880889283,4.10899869,2433.7,2433.3,1.10300821]
[1750880889479,4.90479869,2433.7,2433.3,1.10300821]
[1750880889691,0.7958,2433.7,2433.3,5.21256194]
[1750880889867,4.90490654,2433.7,2433.3,1.10300821]
[1750880890076,4.90490654,2433.7,2433.3,11.10300821]
[1750880890485,4.90490654,2433.7,2433.3,1.10300821]
[1750880890800,4.10914468,2433.6,2433.3,1.10300821]
[1750880891426,4.10913872,2433.6,2433.3,0.2048]
[1750880891595,0.7958,2433.7,2433.3,0.2048]
[1750880892183,0.2048,2433.8,2433.4,4.10946854]
[1750880892697,4.31361651,2433.8,2433.3,4.31439214]
[1750880893298,0.2048,2433.8,2433.4,4.10942829]
[1750880893495,0.2048,2433.8,2433.4,4.10937224]
[1750880893797,1.791,2434.0,2433.6,0.7763]
[1750880893798,4.31327928,2434.0,2433.6,0.7763]
[1750880893982,0.98311346,2433.9,2433.5,0.2048]
[1750880894169,4.31327328,2434.0,2433.2,4.88597375]
[1750880894170,1.80882423,2433.8,2433.2,4.88597375]
[1750880894373,5.13939011,2433.8,2433.3,4.3143143]
[1750880894594,1.0305,2433.8,2433.4,4.10946671]
[1750880895090,1.0305,2433.8,2433.4,4.10945113]
[1750880895294,1.0305,2433.8,2433.6,4.10904664]
[1750880895466,0.2048,2433.8,2433.5,4.10922003]
[1750880896298,0.2048,2433.8,2433.6,4.10912721]
[1750880896591,0.2048,2433.8,2433.5,4.10922319]
[1750880896803,0.2048,2433.8,2433.4,4.10938534]
[1750880897897,0.2048,2433.8,2433.2,0.7763]
[1750880897898,0.9247704,2433.8,2433.2,0.7763]
[1750880898198,4.10956254,2433.4,2432.9,4.11030922]
[1750880898963,4.10965347,2433.3,2432.8,4.11040289]
[1750880899165,4.88812476,2433.1,2432.6,4.11077141]
[1750880899368,0.7781,2433.1,2432.8,4.11037311]
[1750880900172,0.7876,2433.3,2432.7,10.0]
[1750880900405,2.5786,2433.5,2432.9,0.7991]
[1750880900614,9.857,2434.1,2433.6,4.10913872]
[1750880900768,4.1082013,2434.2,2433.3,0.7615]
[1750880900769,4.10864149,2433.9,2433.3,0.7615]
[1750880901084,0.7809,2434.0,2433.6,4.10906159]
[1750880901277,1.76332171,2434.0,2433.5,4.10929893]
[1750880901600,4.10870992,2433.9,2433.4,4.10941257]
[1750880902395,7.04888373,2434.0,2433.5,4.10923763]
[1750880902604,1.95798786,2434.0,2433.6,4.1091208]
[1750880902816,1.95798786,2434.0,2433.3,0.7615]
[1750880903114,5.87183906,2434.0,2433.5,4.10923004]
[1750880904600,4.10865842,2433.9,2433.4,4.10940661]
[1750880904917,4.88943645,2434.0,2433.3,0.7615]
[1750880905079,4.88943645,2434.0,2433.4,4.10944807]
[1750880905080,4.10870738,2433.9,2433.4,4.10944807]
[1750880906442,1.76374912,2434.0,2433.6,4.10912022]
[1750880906606,5.87222687,2434.0,2433.5,4.10922402]
[1750880906915,4.88937775,2434.0,2433.5,4.10922402]
[1750880907085,5.87227427,2434.0,2433.5,4.10922402]
[1750880907386,4.88937775,2434.0,2433.5,4.10922402]
[1750880907901,0.2048,2433.9,2433.5,4.10922402]
[1750880908082,0.2048,2433.9,2433.6,4.10913225]
[1750880908282,0.2048,2433.9,2433.7,4.10885009]
[1750880908478,0.2048,2433.9,2433.6,4.10904962]
[1750880908684,0.2048,2433.9,2433.5,5.02772769]
[1750880908884,4.31355546,2433.9,2433.5,0.91849758]
[1750880909122,0.2048,2433.9,2433.5,4.10922854]
[1750880909306,0.2048,2433.9,2433.5,4.10923866]
[1750880909685,0.2048,2433.9,2433.5,4.10923935]
[1750880910090,0.2048,2433.9,2433.6,4.10909153]
[1750880910706,0.2048,2433.9,2433.5,4.10925636]
[1750880911041,0.8103,2434.2,2433.8,0.8278]
[1750880911219,0.2048,2434.1,2433.9,4.10847993]
[1750880911537,0.2048,2434.1,2434.0,4.10846343]
[1750880912040,0.2048,2434.1,2433.9,4.10855949]
[1750880912438,0.2048,2434.1,2434.0,4.10846343]
[1750880913108,0.2203504,2434.4,2434.2,4.10812587]
[1750880913345,0.2203504,2434.4,2434.3,4.91865711]
[1750880920047,0.2203504,2434.4,2434.3,4.10795711]
[1750880920644,0.2203504,2434.4,2434.3,21.67405711]
[1750880920947,0.2203504,2434.4,2434.3,24.25227407]
[1750880921517,0.2203504,2434.4,2434.3,24.80227407]
[1750880922236,7.8,2435.4,2435.3,4.10627027]
[1750880922443,0.8073,2435.6,2435.2,4.88952207]
[1750880922638,4.91307744,2435.6,2434.9,11.67299499]
[1750880923016,5.11787744,2435.6,2435.1,4.31140171]
[1750880923222,1.0121,2435.6,2435.2,4.10639122]
[1750880923839,4.10593653,2435.5,2435.1,0.2048]
[1750880924056,5.11794265,2435.6,2435.1,4.31139766]
[1750880924230,1.0121,2435.6,2435.1,0.2048]
[1750880924436,1.0121,2435.6,2435.2,4.10630551]
[1750880925157,4.10596116,2435.5,2435.1,0.2048]
[1750880925453,5.11793951,2435.6,2435.1,4.31138776]
[1750880925751,0.2048,2435.6,2435.3,4.10618544]
[1750880926054,0.2048,2435.7,2435.3,4.31098544]
[1750880926367,0.2048,2435.7,2435.4,4.10607976]
[1750880927656,0.2048,2435.7,2435.5,4.10578259]
[1750880927831,0.2048,2435.7,2435.6,4.10576449]
[1750880928553,1.786,2436.0,2435.7,4.10546428]
[1750880928554,0.2048,2436.0,2435.7,4.10546428]
[1750880928722,0.2048,2436.0,2435.8,4.10542125]
[1750880929255,0.2048,2436.0,2435.7,4.10556131]
[1750880929427,0.2048,2436.0,2435.6,4.8621683]
[1750880929754,0.2048,2436.0,2435.6,4.1056683]
[1750880930151,0.2048,2436.0,2435.7,4.10549404]
[1750880930324,4.30965683,2436.2,2435.8,0.2048]
[1750880930526,0.92207996,2436.1,2435.8,0.2048]
[1750880931036,0.87207996,2436.1,2435.8,0.2048]
[1750880931227,4.97704518,2436.1,2435.8,0.2048]
[1750880931626,0.87207996,2436.1,2435.8,0.2048]
[1750880931925,4.10493772,2436.1,2435.8,0.2048]
[1750880932657,0.763,2435.8,2435.2,0.7822]
[1750880932859,0.763,2435.5,2435.2,0.2048]
[1750880933058,0.763,2435.5,2434.8,0.7822]
[1750880933059,0.50736016,2435.4,2435.0,4.10675408]
[1750880933362,5.0738304,2435.5,2435.1,0.2048]
[1750880933937,0.9678,2435.5,2435.1,4.31138273]
[1750880934846,5.07374097,2435.5,2435.1,0.2048]
[1750880935642,0.9678,2435.5,2435.1,4.31140307]
[1750880936464,0.9678,2435.5,2435.2,4.10643718]
[1750880936869,0.9678,2435.5,2435.1,4.31132256]
[1750880937479,1.4751586,2435.5,2435.1,0.2048]
[1750880937639,1.4751586,2435.5,2434.7,10.0]
[1750880937640,4.31098099,2435.4,2434.9,4.31173466]
[1750880937834,4.10662809,2435.1,2434.9,0.2048]
[1750880938040,0.7548,2435.1,2434.8,0.2048]
[1750880938251,4.86150277,2435.1,2434.6,4.10744033]
[1750880938556,0.2048,2435.0,2434.7,4.10727302]
[1750880939432,0.7548,2434.9,2434.6,0.2048]
[1750880939765,0.9096,2434.9,2434.6,4.10737279]
[1750880940466,0.9096,2434.9,2434.6,4.10745091]
[1750880940673,0.9096,2434.9,2434.8,4.10711352]
[1750880940970,0.9096,2434.9,2434.6,4.10745091]
[1750880941172,0.9096,2434.9,2434.7,4.10728221]
[1750880941672,0.9096,2434.9,2434.8,4.10711352]
[1750880942045,12.6683602,2435.3,2434.6,4.10744732]
[1750880942046,4.10667622,2435.1,2434.6,4.10744732]
[1750880942274,0.2048,2434.9,2434.6,4.10744732]
[1750880942763,0.2048,2434.9,2434.7,4.10720468]
[1750880942973,0.2048,2435.1,2434.6,0.2048]
[1750880943144,0.7612,2435.5,2434.8,4.1070734]
[1750880943343,0.966,2435.5,2435.3,4.10625309]
[1750880943658,0.2048,2435.5,2435.3,4.10625309]
[1750880944039,0.2048,2435.5,2435.4,4.10610166]
[1750880944451,4.86681204,2435.7,2435.2,4.10638397]
[1750880944672,0.2048,2435.6,2435.2,0.2048]
[1750880945048,4.10594451,2435.5,2435.2,0.2048]
[1750880945242,4.3106379,2435.6,2435.2,0.2048]
[1750880945463,0.2048,2435.6,2435.2,4.31120783]
[1750880946376,0.2048,2435.6,2435.2,0.2048]
[1750880946977,0.2048,2435.6,2435.2,4.31123421]
[1750880947166,4.31057127,2435.6,2435.2,0.2048]
[1750880947340,0.2048,2435.6,2435.2,4.31122961]
[1750880948386,4.31057495,2435.6,2435.2,4.31122961]
[1750880948684,4.31057495,2435.6,2435.2,0.2048]
[1750880949582,4.10617368,2435.4,2435.2,0.2048]
[1750880949977,4.10602403,2435.5,2435.2,0.2048]
[1750880950278,6.40679131,2435.6,2435.2,0.2048]
[1750880950484,4.10594885,2435.5,2435.2,0.2048]
[1750880951507,4.10610614,2435.4,2435.2,0.2048]
[1750880951694,4.10610614,2435.4,2434.4,0.8105]
[1750880951695,2.5717,2435.3,2434.4,0.8105]
[1750880951991,0.2048,2434.9,2434.6,4.10735325]
[1750880952162,0.2048,2434.9,2434.4,10.2048]
[1750880952368,4.31176988,2434.9,2434.4,14.31249481]
[1750880952866,4.10723714,2434.8,2434.4,0.2048]
[1750880953388,0.2048,2434.6,2434.1,4.31300577]
[1750880953598,4.31237782,2434.6,2434.1,4.31300577]
[1750880954090,4.10761963,2434.5,2434.1,0.2048]
[1750880954286,0.2048,2434.6,2434.1,4.31307685]
[1750880954494,0.2048,2434.6,2434.3,4.10794093]
[1750880954790,0.2048,2434.6,2434.1,4.90751196]
[1750880955093,0.2048,2434.6,2434.3,4.10794168]
[1750880955569,0.2048,2434.6,2434.2,4.1080956]
[1750880957287,0.2048,2434.6,2434.1,4.31298636]
[1750880957492,0.2048,2434.6,2434.1,0.2048]
[1750880957690,0.2048,2434.4,2434.0,0.2048]
[1750880957987,0.2048,2434.4,2434.3,4.10795711]
[1750880958192,4.10752992,2434.6,2434.2,0.2048]
[1750880958367,4.10791279,2434.4,2433.8,0.7731]
[1750880958569,0.2048,2434.3,2433.9,4.10854138]
[1750880958786,4.10824565,2434.2,2433.8,10.2048]
[1750880958983,4.31276201,2434.3,2433.8,4.31350433]
[1750880959181,4.10785281,2434.4,2433.8,4.10870433]
[1750880959382,0.2048,2434.1,2433.8,4.10870433]
[1750880959884,0.9724,2434.1,2433.7,14.10893056]
[1750880960462,0.9724,2434.1,2433.7,10.0]
[1750880960667,0.9724,2434.1,2433.9,4.10855801]
[1750880961068,0.7676,2434.3,2433.7,10.0]
[1750880961291,0.9724,2434.3,2433.9,4.10863223]
[1750880961566,0.9724,2434.3,2433.8,5.35943109]
[1750880961767,0.9724,2434.3,2433.9,4.10846507]
[1750880961989,0.9724,2434.3,2434.0,4.10843467]
[1750880963088,0.9724,2434.3,2434.0,4.10843723]
[1750880963288,0.9724,2434.3,2434.1,4.10818419]
[1750880963601,0.9724,2434.3,2434.0,4.10838272]
[1750880964997,0.9724,2434.3,2434.1,4.10828165]
[1750880965900,0.9724,2434.3,2434.1,4.10829464]
[1750880966200,0.9724,2434.3,2434.1,4.10819204]
[1750880966404,0.9724,2434.3,2433.7,10.0]
[1750880966405,4.10817575,2434.2,2433.7,4.10889659]
[1750880966708,0.2048,2434.1,2433.7,4.10889659]
[1750880966893,0.2048,2434.1,2433.8,4.10877333]
[1750880967604,0.2048,2434.1,2433.6,0.2048]
[1750880967783,0.2048,2434.1,2433.8,4.10869158]
[1750880968583,0.2048,2434.1,2433.7,4.10894014]
[1750880969017,0.2048,2434.1,2433.6,15.82327684]
[1750880969868,4.31310018,2434.1,2433.6,15.82327684]
[1750880970073,0.8097,2433.9,2433.6,0.2048]
[1750880970302,0.8097,2433.6,2433.2,0.2048]
[1750880970614,0.8097,2433.6,2433.0,4.11015207]
[1750880970615,0.2048,2433.3,2433.0,4.11015207]
[1750880970785,0.2048,2433.3,2433.1,4.10996598]
[1750880970980,0.2048,2433.3,2433.0,4.11009584]
[1750880971186,0.2048,2433.3,2433.1,4.10997294]
[1750880971498,0.2048,2433.3,2433.2,4.10981423]
[1750880971683,0.2048,2433.3,2432.9,0.2048]
[1750880971879,4.86477625,2433.2,2432.5,2.6085]
[1750880972105,0.2048,2433.1,2432.7,4.31537691]
[1750880972412,4.31480852,2433.1,2432.7,0.2048]
[1750880972779,0.2048,2433.1,2432.7,0.2048]
[1750880972978,0.2048,2433.1,2433.0,4.11015207]
[1750880973190,0.7549,2433.2,2432.9,4.11026483]
[1750880973420,0.7549,2433.2,2432.9,4.31506483]
[1750880973582,0.7549,2433.2,2432.9,4.31503092]
[1750880973987,0.7549,2433.2,2432.9,0.2048]
[1750880974181,0.7549,2433.2,2432.9,4.31509772]
[1750880974384,0.2048,2433.3,2433.0,4.11006761]
[1750880974819,0.2048,2433.3,2432.9,4.74656379]
[1750880975016,0.2048,2433.3,2432.9,4.31504586]
[1750880975314,0.2048,2433.3,2433.0,4.11012767]
[1750880976022,0.2048,2433.3,2432.9,0.2048]
[1750880976184,0.2048,2433.3,2432.9,4.31502953]
[1750880976621,0.2048,2433.3,2432.9,4.31511435]
[1750880976826,0.2048,2433.1,2432.8,4.11035727]
[1750880976995,0.2048,2433.1,2432.9,4.11029205]
[1750880977202,0.2048,2433.1,2432.8,4.11040457]
[1750880977821,0.2048,2433.1,2432.9,4.11028582]
[1750880978421,0.2048,2433.1,2433.0,4.11015207]
[1750880979003,0.8159,2433.6,2432.9,5.7793406]
[1750880979221,1.0207,2433.6,2433.3,4.10951569]
[1750880979424,1.0207,2433.6,2433.4,4.1094656]
[1750880979790,0.2048,2433.6,2433.5,4.10930758]
[1750880980229,0.2048,2433.6,2433.5,5.01366479]
[1750880980391,0.8128,2434.0,2433.5,0.90435721]
[1750880980713,1.784,2434.2,2433.5,0.90435721]
[1750880980714,0.2048,2434.1,2433.8,4.10876326]
[1750880981323,0.2048,2434.1,2433.6,4.31383952]
[1750880981324,4.31311529,2434.1,2433.6,4.31385661]
[1750880981824,0.2048,2434.1,2433.7,4.10894522]
[1750880982319,0.2048,2434.1,2433.6,0.2048]
[1750880982518,0.2048,2434.1,2433.9,4.10862526]
[1750880983517,0.2048,2434.1,2433.8,4.10876514]
[1750880983902,0.2048,2434.1,2433.7,4.10890773]
[1750880984098,0.2048,2434.1,2433.8,4.108789]
[1750880984304,0.2048,2434.1,2433.9,4.10862704]
[1750880985315,0.2048,2434.1,2433.8,4.10872564]
[1750880986121,0.2048,2434.1,2433.9,4.10860307]
[1750880987528,0.2048,2434.1,2433.9,4.1086129]
[1750880987727,0.2048,2434.1,2434.0,4.10846343]
[1750880989192,0.2048,2434.1,2433.9,4.10853908]
[1750880989628,0.2048,2434.1,2433.8,4.10871141]
[1750880990328,0.8186,2434.0,2433.2,0.763]
[1750880990528,0.8186,2434.0,2433.2,4.87270043]
[1750880990529,0.2048,2433.6,2433.2,4.87270043]
[1750880990703,1.0234,2433.6,2433.2,4.10970043]
[1750880991026,1.0234,2433.6,2433.3,4.10956523]
[1750880991443,1.0234,2433.6,2433.1,4.31476254]
[1750880991731,0.2048,2433.4,2433.1,6.11300154]
[1750880992045,0.8186,2433.6,2432.9,4.95270441]
[1750880992330,0.2048,2433.3,2433.1,4.10998158]
[1750880992699,0.2048,2433.3,2433.2,4.10981423]
[1750880993201,0.8186,2433.6,2433.4,4.10939907]
[1750880993433,0.2048,2433.5,2433.4,4.10939907]
[1750880994229,0.2048,2433.5,2433.2,4.10973755]
[1750880994532,0.2048,2433.5,2433.4,4.10947645]
[1750880995511,0.2048,2433.5,2433.3,4.10961324]
[1750880997616,0.2048,2433.8,2433.5,4.10928934]
[1750880998022,0.2048,2433.8,2433.6,4.10912223]
[1750880998325,16.67353126,2434.0,2433.8,4.10869295]
[1750880998326,0.2048,2434.0,2433.8,4.10869295]
[1750880999002,0.2048,2434.0,2433.6,1.82225943]
[1750880999202,0.2048,2434.0,2433.6,5.13572214]
[1750880999435,4.90873051,2433.9,2433.4,4.10938417]
[1750880999614,0.2048,2433.8,2433.4,4.10938417]
[1750880999931,4.31362766,2433.8,2433.3,4.3143578]
[1750881000133,0.2048,2433.8,2433.3,0.2048]
[1750881000437,10.0,2434.7,2433.3,0.2048]
[1750881000438,12.70778907,2434.4,2433.9,4.10855677]
[1750881000604,2.259,2434.4,2434.0,4.10844514]
[1750881000809,2.259,2434.4,2433.6,4.10913872]
[1750881000810,2.259,2434.4,2434.1,4.1081544]
[1750881001010,0.8,2434.4,2434.1,4.1081544]
[1750881001206,0.8,2434.4,2434.0,4.10832435]
[1750881001432,0.009,2434.5,2433.5,10.7956]
[1750881001634,4.10869021,2433.9,2433.4,4.10945154]
[1750881001808,6.781,2434.0,2433.1,14.89077755]
[1750881002008,6.781,2434.0,2433.3,1.57332229]
[1750881002240,1.783,2434.1,2433.6,0.7808]
[1750881003038,1.783,2434.1,2434.0,4.10846343]
[1750881003245,1.783,2434.1,2433.9,4.1085272]
[1750881003605,1.783,2434.1,2434.0,4.10846343]
[1750881003942,1.783,2434.1,2433.6,0.7808]
[1750881004244,5.89129708,2434.1,2433.6,4.10906101]
[1750881004446,0.7694,2434.0,2433.6,4.10906101]
[1750881004611,0.7694,2434.0,2433.7,4.10895694]
[1750881005006,0.7694,2434.0,2433.8,4.10876323]
[1750881005245,0.7694,2434.0,2433.9,4.10863223]
[1750881005442,1.783,2434.1,2433.5,4.10927536]
[1750881005710,1.783,2434.1,2433.9,4.10847613]
[1750881005906,1.783,2434.1,2433.9,4.1085498]
[1750881006131,1.783,2434.1,2433.9,4.10854095]
[1750881006329,0.7694,2434.2,2433.9,4.10852169]
[1750881006550,0.7694,2434.2,2433.6,0.49288754]
[1750881006740,0.7694,2434.2,2433.8,4.10863709]
[1750881006923,0.7694,2434.2,2433.9,4.10852728]
[1750881007421,0.7694,2434.2,2434.0,4.10838156]
[1750881007743,0.7694,2434.2,2434.1,4.10829464]
[1750881008045,0.009,2434.5,2434.4,4.10778836]
[1750881008215,0.009,2434.5,2434.3,4.10786418]
[1750881008416,0.009,2434.5,2434.3,4.92945757]
[1750881008922,0.009,2434.5,2434.4,4.10778836]
[1750881009237,0.009,2434.5,2434.3,0.82159339]
[1750881009441,0.009,2434.5,2434.3,4.92953379]
[1750881010145,0.009,2434.5,2434.3,0.82159339]
[1750881010440,0.009,2434.5,2434.2,4.10812587]
[1750881010833,0.009,2434.5,2434.3,4.10795711]
[1750881011351,0.009,2434.5,2434.4,4.10778836]
[1750881013048,0.009,2434.5,2434.4,4.87638836]
[1750881013407,0.009,2434.5,2434.3,0.2048]
[1750881013610,0.009,2434.5,2434.3,4.31266067]
[1750881013813,0.009,2434.5,2434.3,5.15473994]
[1750881014092,0.009,2434.5,2434.3,0.84207927]
[1750881014233,1.0222,2434.5,2434.2,4.10803343]
[1750881014554,0.8174,2434.5,2434.1,4.10825102]
[1750881014850,0.2048,2434.4,2434.1,4.10828312]
[1750881015053,0.2048,2434.4,2434.0,4.1083739]
[1750881015252,0.2048,2434.4,2434.1,4.10817365]
[1750881015551,0.2048,2434.4,2434.1,4.95033129]
[1750881015749,0.2048,2434.4,2434.1,0.84214371]
[1750881016057,4.31259506,2434.4,2433.9,4.31335554]
[1750881016227,4.1079624,2434.3,2433.9,0.2048]
[1750881016435,4.1078632,2434.4,2433.9,4.10855866]
[1750881016624,0.2048,2434.2,2433.9,4.10855866]
[1750881016825,0.2048,2434.2,2434.0,4.1084558]
[1750881017031,0.2048,2434.2,2434.0,5.00703663]
[1750881017426,0.2048,2434.2,2434.1,4.10829464]
[1750881017629,0.2048,2434.3,2434.1,4.10820745]
[1750881017918,0.2048,2434.3,2434.0,5.00701275]
[1750881017919,0.2048,2434.3,2434.0,5.00701021]
[1750881018221,0.2048,2434.3,2434.1,4.10827543]
[1750881018429,0.2048,2434.3,2434.0,5.00696185]
[1750881018630,0.2048,2434.3,2434.1,4.10820909]
[1750881018853,4.31282777,2434.3,2434.0,0.89858083]
[1750881019053,4.10802777,2434.3,2433.9,10.0]
[1750881019351,0.2048,2434.2,2434.0,4.10836669]
[1750881019551,2.5994,2434.5,2434.2,4.10812587]
[1750881019721,0.2048,2434.4,2434.1,4.1082293]
[1750881019921,0.2048,2434.4,2434.1,4.10822994]
[1750881020329,0.2048,2434.4,2434.2,4.10803909]
[1750881020858,0.2048,2434.4,2434.1,1.75391894]
[1750881021032,0.2048,2434.4,2433.9,4.31335828]
[1750881021347,4.31268321,2434.4,2433.9,4.31335828]
[1750881021551,4.10801845,2434.3,2433.9,4.10861677]
[1750881021747,0.2048,2434.2,2433.9,4.10861677]
[1750881021948,0.2048,2434.2,2434.1,4.10829464]
[1750881022533,0.2048,2434.2,2433.9,4.10854406]
[1750881022843,0.2048,2434.2,2433.9,0.91966451]
[1750881023040,0.2048,2434.2,2433.7,10.9793]
[1750881023241,0.8174,2434.5,2434.2,4.10803403]
[1750881023440,0.2048,2434.4,2434.3,4.10788303]
[1750881024021,5.09936944,2434.4,2433.9,4.31335504]
[1750881024223,0.2048,2434.2,2433.9,4.10855504]
[1750881024755,0.2048,2434.2,2434.0,4.10838554]
[1750881025323,0.2048,2434.2,2434.1,4.10829464]
[1750881025652,0.2138,2434.5,2434.3,4.10795711]
[1750881025819,0.2138,2434.5,2434.3,4.10786341]
[1750881026222,0.2138,2434.5,2434.2,4.10802784]
[1750881026426,0.2138,2434.5,2434.3,4.10793514]
[1750881026832,0.009,2434.5,2434.4,4.10778836]
[1750881027236,0.009,2434.5,2434.3,4.10786036]
[1750881027529,0.009,2434.5,2434.2,4.3128338]
[1750881027729,0.009,2434.5,2434.2,5.31519683]
[1750881028049,0.009,2434.5,2434.3,4.10793669]
[1750881028239,0.009,2434.5,2434.2,5.31521119]
[1750881028660,0.009,2434.5,2434.2,5.31521052]
[1750881028860,0.009,2434.5,2434.3,4.10792098]
[1750881029062,0.009,2434.5,2434.4,0.94231315]
[1750881029257,0.009,2434.5,2434.2,4.31289133]
[1750881029258,0.009,2434.5,2434.2,4.31284106]
[1750881029640,4.93642192,2434.5,2434.0,4.95060184]
[1750881029961,1.0335,2434.5,2434.1,4.10823329]
[1750881030329,0.2138,2434.5,2434.3,4.10779445]
[1750881030530,0.2138,2434.5,2434.4,4.10778836]
[1750881031528,0.2138,2434.5,2434.0,5.15542908]
[1750881031732,0.2138,2434.5,2434.4,4.10778836]
[1750881032461,0.009,2434.5,2434.4,4.10778836]